Cogmind - Beta 17.1 @@@ ROGUE MODE // 2026.09.19 @ 20:04:46 Player: MrProgressor Result: Destroyed by W7-GWZ(R) with Subdweller Shrapnel Launcher Performance ------------- Evolutions (0) 0 Regions Visited (3) 600 Robots Destroyed (17) 85 Value Destroyed (377) 377 Prototype IDs (0) 0 Alien Tech Used (0) 0 Bonus (0) 0 TOTAL SCORE: 1062 Bonus ------- None Cogmind --------- Core Integrity 0/250 Matter 8/300 Energy 100/100 System Corruption 0% Temperature Cool (0) Movement Core (250) Ox4 Location -10/Subcaves Parts ------- > --- POWER (1) -------- (None) > --- PROPULSION (2) --- Subdweller Monowheel > --- UTILITY (2) ------ Subdweller Optics Makeshift Light Armor Plating > --- WEAPON (2) ------- Subdweller Shrapnel Launcher > --- INVENTORY (5) ---- Small Storage Unit Seismic Detector Makeshift Laser Subdweller Beam Cannon Scrap Shield Fragment (48) Peak State ------------ > --- POWER ------------ Ion Engine > --- PROPULSION ------- Wheel Subdweller Monowheel > --- UTILITY ---------- Small Storage Unit Makeshift Light Armor Plating > --- WEAPON ----------- Subdweller Laser Subdweller Machine Gun > --- INVENTORY -------- Wheel Subdweller Monowheel Subdweller Optics Seismic Detector Makeshift Laser Subdweller Beam Cannon Subdweller Shrapnel Launcher Scrap Shield Fragment [Rating: 14] Favorites ----------- Power Ion Engine Engine Ion Engine Propulsion Wheel Treads Spiked Treads Leg Aluminum Leg Wheel Wheel Utility Small Storage Unit Device Seismic Detector Storage Small Storage Unit Protection Makeshift Light Armor Plating Weapon Assault Rifle Energy Gun Subdweller Laser Ballistic Gun Assault Rifle Launcher Subdweller Shrapnel Launcher Build | -11 -10 -10 -10 ------- Run | Yrd Mat Min Sub Slots Evolved . | . . . . Power . | . . . . Propulsion . | . . . . Utility . | . . . . Weapon . | . . . . Parts Attached 22 | 1 6 . 15 Power 1 | . . . 1 Engine 1 | . . . 1 Core . | . . . . Reactor . | . . . . Propulsion 10 | . 5 . 5 Treads 2 | . 1 . 1 Leg . | . . . . Wheel 8 | . 4 . 4 Hover . | . . . . Flight . | . . . . Utility 4 | 1 1 . 2 Device 3 | 1 1 . 1 Storage . | . . . . Processor . | . . . . Hackware . | . . . . Protection 1 | . . . 1 Artifact . | . . . . Weapon 7 | . . . 7 Energy Gun 2 | . . . 2 Energy Cannon . | . . . . Ballistic Gun 3 | . . . 3 Ballistic Cannon . | . . . . Launcher 2 | . . . 2 Special Weapon . | . . . . Impact Weapon . | . . . . Slashing Weapon . | . . . . Piercing Weapon . | . . . . Special Melee Weapon . | . . . . Unidentified Prototypes . | . . . . Parts Lost 6 | . . . 6 Power 1 | . . . 1 Propulsion 3 | . . . 3 Utility . | . . . . Weapon 2 | . . . 2 Highest Loss Streak 2 | . . . 2 To Critical Strikes . | . . . . Average Backups 6 | 6 7 8 6 Power . | 1 1 1 . Propulsion 2 | 4 3 3 1 Utility 1 | . . 1 1 Weapon 2 | 1 2 3 2 Tool/Special . | . . . . Unused Backups 17 | . 9 . 8 Power 2 | . 1 . 1 Propulsion 5 | . 5 . . Utility 2 | . 1 . 1 Weapon 8 | . 2 . 6 Tool/Special . | . . . . Average Slot Usage (%) 93 | . 100 100 92 Engine 10 | . 14 14 10 Wheel 27 | . 20 28 27 Device 12 | . 14 14 12 Storage 11 | . 14 14 10 Protection 4 | . . . 4 Ballistic Gun 21 | . 28 28 20 Launcher 2 | . . . 3 Peak Build Rating 14 | 7 7 7 14 Average Rating 9 | 6 7 7 10 On Entrance 6 | 6 7 7 7 Avg Prop Armor Cover (%) 6 | . . . 6 Naked Turns . | . . . . Heaviest Build 22 | 15 15 15 22 Greatest Support 40 | 20 26 26 40 Greatest Overweight (x) 4 | . . . 4 Average Overweight (x) . | . . . . Largest Inventory Capacity 8 | 8 8 8 8 Average Capacity 7 | 8 8 8 7 Most Carried 8 | 7 8 8 8 Average Carried 7 | 6 7 8 7 Final Capacity 8 | 8 8 8 5 Final Carried 8 | 7 8 8 5 Class Distribution -------------------- 100% | Mutant Dominant Class ---------------- Mutant | -10/Materials Mutant | -10/Mines Mutant | -10/Subcaves Resources | -11 -10 -10 -10 ----------- Run | Yrd Mat Min Sub Matter Collected 759 | 222 28 . 509 Remotely . | . . . . Salvage Created 369 | 24 28 . 317 Parts 36 | 2 4 . 30 Haulers Intercepted . | . . . . Recyclers Shooed . | . . . . Parts Field Recycled . | . . . . Retrieved Matter . | . . . . Parts Self-Destructed 13 | . . . 13 Prevented . | . . . . Parts Restored . | . . . . Kills | -11 -10 -10 -10 ------- Run | Yrd Mat Min Sub Combat Hostiles Destroyed 16 | . 2 . 14 Melee 1 | . . . 1 Guns 11 | . 2 . 9 AOE 4 | . . . 4 Classes Destroyed 3 | 1 1 . 1 Tunneler 1 | 1 . . . Swarmer 9 | . 2 . 7 Subdweller 7 | . . . 7 Best Kill Streak 4 | 1 2 . 4 Combat Bots Only 4 | . 2 . 4 Max Kills in Single Turn 2 | 1 1 . 2 Gunslinging . | . . . . Exploded 2 | . . . 2 Melee 1 | . . . 1 Uniques/NPCs Destroyed . | . . . . Combat | -11 -10 -10 -10 -------- Run | Yrd Mat Min Sub Hostile Shots Fired 99 | . 2 . 97 Missed 41 | . 2 . 39 Hits 58 | . . . 58 Projectile 58 | . . . 58 AOE 5 | . . . 5 Damage Taken 1147 | . . . 1147 Core 256 | . . . 256 Absorbed by Shields . | . . . . Core Remaining (%) 100 | 100 . . . Volleys Fired 55 | 2 4 . 49 Largest 2 | 2 2 . 2 Hottest 110 | 40 40 . 110 Shots Fired 86 | 4 8 . 74 Gun 66 | 4 8 . 54 Cannon . | . . . . Launcher 20 | . . . 20 Special . | . . . . Kinetic 71 | 4 8 . 59 Thermal 11 | . . . 11 Explosive 3 | . . . 3 Electromagnetic 1 | . . . 1 Robot Hit Streak 11 | 2 5 . 11 Robot Miss Streak 3 | 1 3 . 1 Penetration Max . | . . . . Secondary Targets 1 | . . . 1 Max Gunslinging Chain 1 | . . . 1 Shots Hit Robots 49 | 2 3 . 44 Core Hits 29 | 1 2 . 26 Critical Kills 1 | . . . 1 Critical Parts Destroyed . | . . . . Critical Strikes 1 | . . . 1 Destroy 1 | . . . 1 Melee Attacks . | . . . . Impact . | . . . . Slashing . | . . . . Piercing . | . . . . Sneak Attacks . | . . . . Combat Hostiles . | . . . . Follow-up Attacks . | . . . . Damage Inflicted 1062 | 25 32 . 1005 Guns 776 | 25 32 . 719 Cannons . | . . . . Explosions 263 | . . . 263 Melee . | . . . . Ramming 23 | . . . 23 Kinetic 756 | 25 32 . 699 Thermal 180 | . . . 180 Explosive 93 | . . . 93 Electromagnetic 10 | . . . 10 Impact . | . . . . Slashing . | . . . . Piercing . | . . . . Highest Corruption . | . . . . Average Corruption . | . . . . Corruption Purged . | . . . . Corruption Blocked . | . . . . Overload Shots . | . . . . Overflow Damage 16 | . . . 16 Projectiles . | . . . . Explosions 16 | . . . 16 Melee . | . . . . Knockbacks . | . . . . Impact . | . . . . Kinetic . | . . . . Secondary . | . . . . Self-Inflicted Damage 69 | . . . 69 Shots 1 | . . . 1 Rammed 6 | . . . 6 Targets Rammed 6 | . . . 6 Kicked . | . . . . Crushed . | . . . . Highest Temperature . | . . . . Average Temperature . | . . . . Received Heat Transfer 108 | . . . 108 Siege Activations . | . . . . Martial Activations . | . . . . Shielding Activations . | . . . . Robots Disrupted . | . . . . Combat Hostiles . | . . . . Robots Corrupted . | . . . . Combat Hostiles . | . . . . Parts Fried . | . . . . Impact Corruptions . | . . . . Robots Melted . | . . . . Combat Hostiles . | . . . . Parts Melted . | . . . . Heat Transferred 225 | . . . 225 Parts Sabotaged . | . . . . Parts Stolen . | . . . . Parts Stripped . | . . . . Power Chain Reactions . | . . . . Alert | -11 -10 -10 -10 ------- Run | Yrd Mat Min Sub Maximum Alert Level . | . . . . Low Security (%) 100 | 100 100 100 . Level 1 . | . . . . Level 2 . | . . . . Level 3 . | . . . . Level 4 . | . . . . Level 5 . | . . . . High Security . | . . . . Max Security . | . . . . Peak Influence 65 | 5 65 5 . Initial 5 | . . 5 . Average 10 | 1 24 . . Influence Increases 589 | 5 74 . 510 Destroy 0b10 Robot/C 180 | . 40 . 140 Destroy 0b10 Robot/NC 5 | 5 . . . Destroy Leader 20 | . 10 . 10 Successful Hack 9 | . 9 . . Lose Combat Pursuer 375 | . 15 . 360 Influence Decreases 277 | 5 59 15 198 Entered New Map 10 | . . 10 . Time Decay 237 | 5 59 5 168 Lost Part 30 | . . . 30 Squads Dispatched 2 | . 2 . . Investigation . | . . . . Extermination . | . . . . Reinforcement 2 | . 2 . . Assault . | . . . . Garrison . | . . . . Intercept . | . . . . Searches Triggered . | . . . . Construction Impeded . | . . . . Haulers Reinforced . | . . . . Active Scanning Responses . | . . . . Cargo Convoy Interrupts . | . . . . Stealth | -11 -10 -10 -10 --------- Run | Yrd Mat Min Sub Distress Signals 1 | . 1 . . Communications Jammed . | . . . . Distress Signals . | . . . . Times Spotted 34 | . 6 . 28 Peak Tracking Total 6 | . 3 . 6 Tactical Retreats 8 | . 1 . 7 Traps | -11 -10 -10 -10 ------- Run | Yrd Mat Min Sub Traps Triggered 1 | . . . 1 Indirectly . | . . . . Trap Hack Attempts . | . . . . Triggered . | . . . . Disarmed . | . . . . Reprogrammed . | . . . . Reused . | . . . . Traps Extracted . | . . . . Installed . | . . . . Triggered . | . . . . Machines | -11 -10 -10 -10 ---------- Run | Yrd Mat Min Sub Machines Disabled 2 | . . . 2 Max in Single Turn 2 | . . . 2 Machines Repaired . | . . . . Machines Dismantled . | . . . . Machines Sabotaged . | . . . . Overloaded Fab Kills . | . . . . Hacking | -11 -10 -10 -10 --------- Run | Yrd Mat Min Sub Machines Accessed 3 | . 2 . 1 Terminals 2 | . 2 . . Fabricators . | . . . . Repair Stations . | . . . . Recycling Units . | . . . . Scanalyzers . | . . . . Garrison Access . | . . . . Total Hacks 9 | . 5 . 4 Successful 7 | . 3 . 4 Failed 2 | . 2 . . Catastrophic . | . . . . Database Lockouts . | . . . . Manual 1 | . 1 . . Terminals 5 | . 5 . . Fabricators . | . . . . Repair Stations . | . . . . Recycling Units . | . . . . Scanalyzers . | . . . . Garrison Access . | . . . . Terminal Hacks 7 | . 3 . 4 Record 4 | . . . 4 Locate Traps 2 | . 2 . . Zone Layout 1 | . 1 . . Fabricator Hacks . | . . . . Repair Station Hacks . | . . . . Recycling Unit Hacks . | . . . . Scanalyzer . | . . . . Garrison Access Hacks . | . . . . Unauthorized Hacks . | . . . . Terminals . | . . . . Fabricators . | . . . . Repair Stations . | . . . . Recycling Units . | . . . . Scanalyzers . | . . . . Garrison Access . | . . . . Data Cores Recovered . | . . . . Used . | . . . . Hacking Detections 2 | . 2 . . Full Trace Events . | . . . . Feedback Events . | . . . . Feedback Blocked . | . . . . Robot Schematics Acquired . | . . . . Robots Built . | . . . . Authchips . | . . . . Time . | . . . . Total Robot Build Rating . | . . . . Part Schematics Acquired . | . . . . Parts Built . | . . . . Authchips . | . . . . Time . | . . . . Total Part Build Rating . | . . . . Part Studies Acquired . | . . . . Parts Repaired . | . . . . Time . | . . . . Parts Recycled . | . . . . Recycled Matter . | . . . . Retrieved Matter . | . . . . Retrieved Components . | . . . . Parts Scanalyzed . | . . . . Part Schematics Acquired . | . . . . Parts Damaged . | . . . . Bothacking | -11 -10 -10 -10 ------------ Run | Yrd Mat Min Sub Used RIF Installer . | . . . . Robots Hacked . | . . . . Non-combat . | . . . . Combat . | . . . . Robot Hacks Applied . | . . . . Relay Couplers Released . | . . . . Fabnet Peak Effective % . | . . . . Robots Rewired . | . . . . Allies Hacked . | . . . . Hacks Repelled . | . . . . Allies | -11 -10 -10 -10 -------- Run | Yrd Mat Min Sub Total Allies . | . . . . Largest Group . | . . . . Highest-Rated Group . | . . . . Highest-Rated Ally . | . . . . Total Orders . | . . . . Ally Attacks . | . . . . Total Damage . | . . . . Kills . | . . . . Allies Corrupted . | . . . . Allies Melted . | . . . . Intel | -11 -10 -10 -10 ------- Run | Yrd Mat Min Sub Active Infowar (turns) 2116 | 6 173 237 1700 Optics 160 | . . . 160 Seismic 1956 | 6 173 237 1540 Robot Analysis Total . | . . . . Derelict Logs Recovered 2 | . . 1 1 Drone Launches . | . . . . Drone Recoveries . | . . . . Exploration | -11 -10 -10 -10 ------------- Run | Yrd Mat Min Sub Turns Passed 2862 | 25 173 237 2427 Spaces Moved 2382 | 13 111 184 2074 Core 89 | . . . 89 Treads 2 | . 1 . 1 Legs 26 | 13 13 . . Wheels 2265 | . 97 184 1984 Hover . | . . . . Flight . | . . . . Fastest Speed 80 | 120 90 90 80 Average Speed 97 | 120 94 90 97 Slowest Speed 250 | 120 160 90 250 Overloaded Moves . | . . . . Propulsion Burnouts . | . . . . Robots Hopped . | . . . . Potential Cave-ins . | . . . . Cave-ins Triggered . | . . . . Exploration Rate (%) 37 | 4 28 27 92 Regions Visited 3 Branch Regions 2 Pre-discovered Areas 1 | . . . 1 Known Exits Taken . | . . . . Unknown Exits Taken 3 | 1 1 1 . Scrap Searched 3 | . . . 3 Spaces Dug . | . . . . Terrain Destroyed 89 | . . . 89 Melee . | . . . . Projectile . | . . . . AOE 89 | . . . 89 Terrain Rammed . | . . . . Walls Destroyed . | . . . . Machines Disabled . | . . . . Actions | -11 -10 -10 -10 --------- Run | Yrd Mat Min Sub Total 2836 | 18 169 255 2394 Wait 325 | 2 40 72 211 Move 2379 | 12 110 183 2074 Hop . | . . . . Pick Up 14 | 1 4 . 9 Fast Attach 4 | 1 . . 3 Attach 2 | . . . 2 Detach . | . . . . Swap 29 | . 7 . 22 Drop 20 | . 4 . 16 Fire 55 | 2 4 . 49 Melee . | . . . . Ram 6 | . . . 6 Kick . | . . . . Crush . | . . . . Escape Stasis . | . . . . Rewire 2 | . . . 2 Trap . | . . . . Miscellaneous . | . . . . Route ------- -11/Scrapyard -10/Materials -10/Mines -10/Subcaves (discovered 2 exits: [*Mat x2]) History --------- Turn | Location | Event 1 | -11/Scrapyard | Discovered new exit (range 3) 26 | -11/Scrapyard | Entered Materials 125 | -10/Materials | Discovered new exit (range 11) 199 | -10/Materials | Entered Mines 218 | -10/Mines | Learned Materials stockpile data 304 | -10/Mines | Build established: Mutant 383 | -10/Mines | Found a Scrap Suit stashed away for nefarious purposes 432 | -10/Mines | Discovered new exit (range 6) 436 | -10/Mines | Entered Subcaves 514 | -10/Subcaves | Visited Clippyterm 516 | -10/Subcaves | Learned Factory trap positions 596 | -10/Subcaves | Shifting Twisted Machinery released Sub. Shrapnel Launcher 604 | -10/Subcaves | Shifting Twisted Machinery released Mak. Laser 1069 | -10/Subcaves | Discovered new exit (range 8) 2214 | -10/Subcaves | Discovered new exit (range 10) 2218 | -10/Subcaves | Disturbed a concealed Subdweller 2224 | -10/Subcaves | A swath of the cavern ceiling suddenly collapsed 2230 | -10/Subcaves | Core integrity fell below 50% 2276 | -10/Subcaves | Core integrity fell below 20% 2467 | -10/Subcaves | Shifting Twisted Machinery released Mak. System Shield 2471 | -10/Subcaves | Shifting Twisted Machinery released Flamer 2545 | -10/Subcaves | Shifting Twisted Machinery released Piercing Trap 2550 | -10/Subcaves | Shifting Twisted Machinery released Sub. Monowheel 2863 | -10/Subcaves | Destroyed by W7-GWZ(R) with Subdweller Shrapnel Launcher Last Messages --------------- 02295_ Lgt. Assault Rifle fries itself beyond repair. 02305_ Machine disabled. 02333_ Acquired 37 matter. 02334_ Acquired 6 matter. 02335_ Acquired 1 matter. 02388_ Acquired 3 matter. 02390_ Acquired 14 matter. 02418_ Sub. Monowheel shoots sparks and powers down. 02434_ Subatomizers dissect the Disposable Heat Sink, destroying it. 02444_ Sub. Optics shoots sparks and powers down. Mak. System Shield falls loose from the Twisted Machinery. Flamer falls loose from the Twisted Machinery. Piercing Trap falls loose from the Twisted Machinery. Sub. Monowheel falls loose from the Twisted Machinery. 02583_ Sub. Monowheel shoots sparks and powers down. 02665_ Acquired 6 matter. 02807_ Dropped Broken Sub. Monowheel. 02808_ Acquired Wheel. 02849_ W7-GWZ(R): "WEHOME!" 02863_ Wheel destroyed. Map ----- +----------------------------------------------------+ | ???# ### # # " ## ?# ##??????????????? | | ???# ## # " ###?## # ##??????????????? | | ??## " #?????### #??????????????? | | ?## #???????# ##??????????????? | | ?# %% ###???????## #??????????????? | | ?# ######????## #??????????????? | | ?### "###??# #??????????????? | | ???# " " ""#### ##??????????????? | | ???# ## " """### ##??????????????? | | ??## ##?# " ## #??????????????? | | ??# #??# " % ##??????????????? | | ??## #??# " "" ##???????????????? | | ???## #??# " """"" #####????????????????? | | ????## ##?##" ########????????????????????? | | ?##### #?# R## ##??????????????????????? | | ## ## ####?### ##?????????????????????? | | # ##?????## ####??????????????????? | | #??##### #??????????????????? | | ##?## ### ##??????????????????? | | ###??# ### ## ##???????????????????? | | #??### ## #####????????????????????? | | ##??# #??????????????????????? | | ###### ##?????????????????????? | | # # # #### ##????????????????????? | | ##??## ##???????????????????? | | ##??#### @ #???????????????????? | | # # ## ##??# ###;; #####???????????????? | | # ###### ###??? ##### ## #???????????????? | | #####????# ###?# ##?# ## ##??????????????? | | ????????## # #?# #### # #??????????????? | | ????????# ### ^ ### #??????????????? | | ????????# ! # # #??????????????? | | ????????### # ##?????????????? | | ??????????### ^ # #?????????????? | | ??????????## ### #?????????????? | | ?????????## ### #?????????????? | | ?????????# ##### ##### ##?????????????? | | ????###??## #???# ###### #??????????????? | | ???## ##??###???# ## #??????????????? | | ??## ####?????# ## ## #??????????????? | | ?## #????## ## #??????????????? | | ?# #???## #??????????????? | | ?# #??## ##?????????????? | | ?# ##### ## #?????????????? | | ?### ## ######## ## #?????????????? | | ???# ### ##?????# ##?####?????????????? | | ???# ##?## ##????# ###?????????????????? | | ??## ##???# ##???#### #?????????????????? | | ?## #????# ##?????# #?????????????????? | | ?# ###### ####### #####?????????????? | +----------------------------------------------------+ Best States ------------- Heat Dissipation 25 Energy Generation 10 Energy Capacity 250 Matter Stores 300 Matter Capacity 300 Sight Range 21 Terrain Scan Density 10 Armor Coverage 100 Evasion (%) 50 Recoil Reduction 1 Item Schematics ----------------- None Robot Schematics ------------------ None Fabricated ------------ Nothing Repaired ---------- Nothing Studied --------- None Alien Tech Used ----------------- None Achievements -------------- None Challenges ------------ None Game ------ Seed CountertargetingEtherialRail Manual? 0 Play Time 01:03:57 Cumulative 324.8 hours Start 2026.09.19 @ 12:24:26 End 2026.09.19 @ 20:04:46 Sessions 5 Manual Loads 0 Difficulty Rogue Special Mode None Game No. 101 Rogue 101 Adventurer 0 Explorer 0 Win Type - Total 2 Types 2/0/0/0/0/0/0/0/0/0 Lore% 62 Gallery% 61 Achievement% 47 Wizard Run 0 Options --------- Layout 0 ASCII 0 Keyboard 0 Movement Numpad Keybinds 1 Fullscreen 2 Font 18/X11 Map View 76x50 Zoom Use 0% Tactical HUD 1 Map Filters NONE Filters NONE Steam 1 RUN: 609f2137-04c3-487d-adea-5d07a9f34f5f